bitfinex-derivatives/quotes_BTCF0:USTF0_20250318
["timestamp","ask_amount","ask_price","bid_price","bid_amount"]
[1742305094736,0.3608,81781.0,81763.0,0.25184]
[1742305094931,0.0523,81780.0,81763.0,0.25184]
[1742305095133,0.1223144,81763.0,81762.0,0.00064]
[1742305095432,0.4831144,81763.0,81762.0,0.00064]
[1742305095640,0.1223324,81751.0,81750.0,7e-08]
[1742305096523,0.8851324,81751.0,81750.0,7e-08]
[1742305096833,0.8851324,81751.0,81738.0,4e-05]
[1742305096834,0.1223504,81739.0,81738.0,4e-05]
[1742305097033,0.1223504,81739.0,81728.0,0.0612229]
[1742305097034,0.1223457,81743.0,81742.0,0.00018347]
[1742305097231,0.6637,81751.0,81742.0,0.00018347]
[1742305097232,0.0509,81751.0,81749.0,0.1223354]
[1742305097436,0.3608,81786.0,81750.0,0.25184]
[1742305097630,0.3608,81795.0,81753.0,0.3608]
[1742305097932,0.0524,81801.0,81792.0,0.3608]
[1742305098136,0.0524,81801.0,81784.0,1.14024]
[1742305098319,0.0611324,81797.0,81791.0,0.1222713]
[1742305098519,0.3608,81793.0,81722.0,0.005]
[1742305098723,0.0524,81796.0,81745.0,0.1223414]
[1742305098724,0.3608,81746.0,81745.0,0.1223414]
[1742305098925,0.3608,81756.0,81755.0,0.1223264]
[1742305099133,0.3608,81768.0,81767.0,0.1223085]
[1742305099337,0.4004021,81780.0,81769.0,0.0611525]
[1742305099523,0.4004021,81780.0,81779.0,0.1222905]
[1742305099524,0.3392576,81780.0,81779.0,0.1222905]
[1742305099838,0.4132,81783.0,81773.0,0.0611492]
[1742305100045,0.1222888,81781.0,81779.0,0.1222896]
[1742305100219,0.1222891,81780.0,81775.0,0.0611481]
[1742305100420,0.1222956,81776.0,81773.0,0.1222984]
[1742305100629,0.0482,81775.0,81774.0,0.122298]
[1742305100938,0.409,81775.0,81743.0,0.061172]
[1742305101236,0.409,81775.0,81749.0,0.2446688]
[1742305101237,0.3392576,81751.0,81749.0,0.2446688]
[1742305101434,0.3392576,81751.0,81749.0,0.122334]
[1742305101435,0.1073,81750.0,81749.0,0.122334]
[1742305101633,0.1073,81750.0,81747.0,0.0611688]
[1742305101836,0.0611697,81747.0,81736.0,0.0611773]
[1742305102133,0.122342,81745.0,81744.0,0.1223417]
[1742305102339,0.1223414,81745.0,81744.0,0.1223417]
[1742305102643,0.1073,81745.0,81742.0,0.0611727]
[1742305102936,0.1073,81745.0,81744.0,0.1223429]
[1742305103237,0.3608,81762.0,81744.0,0.3608]
[1742305103437,0.00164,81776.0,81744.0,0.3608]
[1742305103438,0.3608,81775.0,81774.0,0.122298]
[1742305104024,0.4117,81775.0,81774.0,0.122298]
[1742305104225,0.4219363,81791.0,81785.0,0.1222803]
[1742305104421,0.0611387,81788.0,81784.0,0.1222823]
[1742305104637,0.1222811,81786.0,81784.0,0.1222823]
[1742305104837,0.0611415,81784.0,81780.0,0.00018347]
[1742305105140,0.4830875,81781.0,81780.0,0.00018347]
[1742305105532,0.1223149,81763.0,81757.0,0.0611617]
[1742305105837,0.0509,81762.0,81761.0,0.1223174]
[1742305106438,0.1223234,81757.0,81756.0,0.8886]
[1742305106745,0.1223279,81754.0,81753.0,0.00018347]
[1742305107036,0.4831279,81754.0,81753.0,0.00018347]
[1742305107241,0.4831279,81754.0,81753.0,0.12251287]
[1742305107242,0.3608,81754.0,81753.0,0.12251287]
[1742305107429,0.4831279,81754.0,81753.0,0.00018347]
[1742305107628,0.5452279,81754.0,81753.0,0.00018347]
[1742305107830,0.9866,81754.0,81716.0,0.0611922]
[1742305108138,0.3608,81722.0,81703.0,0.8886]
[1742305108440,0.3608,81704.0,81703.0,1.0110043]
[1742305108627,0.3608,81714.0,81707.0,0.0611987]
[1742305108935,0.3608,81714.0,81703.0,1.0110037]
[1742305109136,0.3608,81707.0,81703.0,0.8886]
[1742305109329,0.0627,81706.0,81705.0,0.1224013]
[1742305109532,0.1850998,81706.0,81705.0,0.1224013]
[1742305109731,0.0627,81706.0,81705.0,0.1224013]
[1742305109926,0.3608,81707.0,81706.0,0.1223998]
[1742305110131,0.3608,81707.0,81706.0,0.0615]
[1742305110331,0.1224003,81706.0,81703.0,0.8886]
[1742305110636,0.1224028,81704.0,81703.0,0.8886]
[1742305111435,0.1223,81706.0,81705.0,0.1224013]
[1742305111743,0.36244,81707.0,81706.0,0.1223998]
[1742305111943,0.3608,81720.0,81704.0,0.1233]
[1742305111944,0.1223,81717.0,81704.0,0.1233]
[1742305112237,0.0611924,81716.0,81706.0,0.0618]
[1742305112427,0.1223,81717.0,81712.0,0.1223902]
[1742305112637,0.3608,81713.0,81712.0,0.1223908]
[1742305112940,0.00018359,81719.0,81718.0,0.1223818]
[1742305113243,0.3608,81739.0,81732.0,0.06118]
[1742305113244,0.37228431,81739.0,81732.0,0.06118]
[1742305113432,0.1223536,81737.0,81732.0,0.06118]
[1742305113629,0.0609,81736.0,81714.0,0.0611936]
[1742305113936,0.3608,81729.0,81718.0,0.0611909]
[1742305114128,0.3608,81729.0,81728.0,0.1223668]
[1742305114531,0.00018359,81732.0,81731.0,0.1223623]
[1742305114725,0.1223638,81730.0,81729.0,0.0614]
[1742305114942,0.0609,81731.0,81716.0,0.88888]
[1742305115140,0.7216,81719.0,81716.0,0.88888]
[1742305115343,0.3608,81719.0,81718.0,0.1223818]
[1742305115648,0.36098359,81732.0,81717.0,0.0614]
[1742305115839,0.36098359,81732.0,81731.0,0.1223623]
[1742305116141,0.00018359,81732.0,81731.0,0.1223623]
[1742305117132,0.3608,81751.0,81731.0,0.2414]
[1742305117533,0.3608,81751.0,81744.0,0.0611707]
[1742305117734,0.0609,81750.0,81745.0,0.0627]
[1742305118136,0.0611756,81739.0,81717.0,0.2406]
[1742305118335,0.3608,81728.0,81718.0,0.0627]
[1742305118642,0.1223583,81734.0,81733.0,0.0611789]
[1742305118935,0.3608,81737.0,81736.0,0.1223548]
[1742305119542,0.3608,81745.0,81744.0,0.1223429]
[1742305119733,0.0611626,81756.0,81751.0,0.1223324]
[1742305120041,0.1223285,81754.0,81752.0,0.1839309]
[1742305120249,0.0611625,81756.0,81752.0,0.0616]
[1742305120540,0.54597579,81753.0,81752.0,0.0616]
[1742305120841,0.42364639,81753.0,81752.0,0.1839309]
[1742305121049,0.36324639,81753.0,81752.0,0.1839309]
[1742305121738,0.36324639,81753.0,81740.0,0.88888]
[1742305121942,0.3608,81741.0,81740.0,1.0112274]
[1742305122245,0.3608,81741.0,81740.0,0.88888]
[1742305123043,0.4831474,81741.0,81740.0,0.88888]
[1742305123346,0.3608,81741.0,81740.0,1.0112289]
[1742305123734,0.4831474,81741.0,81740.0,1.0112289]
[1742305123934,0.4243,81741.0,81740.0,1.0112289]
[1742305124139,0.5466474,81741.0,81740.0,1.0112289]
[1742305124342,0.4243,81741.0,81740.0,1.0112289]
[1742305124846,0.5466474,81741.0,81740.0,0.88888]
[1742305125442,0.4243,81741.0,81740.0,0.1223489]
[1742305125947,0.0611639,81755.0,81738.0,4e-05]
[1742305126249,0.0585,81752.0,81751.0,0.1223324]
[1742305126543,0.0584,81756.0,81752.0,0.1829309]
[1742305126734,0.0585,81758.0,81752.0,0.1829309]
[1742305127155,0.1223259,81756.0,81752.0,0.1829309]
[1742305127335,0.0585,81758.0,81752.0,0.1223309]
[1742305127542,0.3608,81763.0,81752.0,0.1223309]
[1742305127737,0.3608,81771.0,81764.0,0.0611558]
[1742305127939,0.3608,81781.0,81774.0,0.122298]
[1742305128243,0.0606,81780.0,81775.0,0.1222965]
[1742305128646,0.3608,81781.0,81775.0,1.0111765]
[1742305129352,0.0606,81780.0,81775.0,1.0111765]
[1742305129737,0.3608,81788.0,81775.0,1.0111765]
[1742305130250,0.0606,81787.0,81775.0,1.0111765]
[1742305130549,0.3608,81790.0,81789.0,0.1222756]
[1742305130747,0.3608,81800.0,81787.0,0.122277]
[1742305130748,0.3608,81810.0,81787.0,0.23148]
[1742305130933,0.3608,81810.0,81809.0,0.1222457]
[1742305131134,0.3608,81810.0,81807.0,0.1222472]
[1742305131135,0.4830453,81810.0,81807.0,0.1222472]
[1742305131441,0.0613,81809.0,81808.0,0.1222472]
[1742305131746,0.0613,81809.0,81807.0,0.1995477]
[1742305132049,0.0613,81809.0,81808.0,0.1222472]
[1742305132245,0.0794,81817.0,81807.0,0.0773]
[1742305132445,0.0613,81817.0,81816.0,0.1222352]
[1742305133147,0.3608,81818.0,81817.0,0.1222337]
[1742305133348,0.3608,81818.0,81817.0,0.2629337]
[1742305133534,0.0613,81826.0,81825.0,0.1222218]
[1742305134339,0.1222322,81818.0,81817.0,0.06358335]
[1742305134545,0.0771,81825.0,81824.0,0.1222233]
[1742305134848,0.3608,81855.0,81845.0,0.0610958]
[1742305135041,0.1381935,81849.0,81846.0,0.22948]
[1742305135240,0.1381935,81849.0,81833.0,0.3608]
[1742305135241,0.3608,81847.0,81841.0,0.2292]
[1742305135447,0.3608,81863.0,81843.0,0.0610968]
[1742305135642,0.0771,81860.0,81844.0,0.0613]
[1742305135847,0.0771,81860.0,81845.0,0.122191]
[1742305135848,0.3608,81854.0,81845.0,0.122191]
[1742305136038,0.1964903,81853.0,81847.0,0.122188]
[1742305136243,0.1221859,81849.0,81848.0,0.22872]
[1742305136452,0.1354,81853.0,81848.0,0.22872]
[1742305136655,0.1354,81853.0,81848.0,0.22848]
[1742305136954,0.0610921,81851.0,81848.0,0.2895736]
[1742305137152,0.1221859,81849.0,81848.0,0.22848]
[1742305137541,0.1221859,81849.0,81848.0,0.3506674]
[1742305137746,0.152,81849.0,81848.0,0.3506674]
[1742305137945,0.1221859,81849.0,81848.0,0.22848]
[1742305138145,0.3608,81854.0,81853.0,0.12218]
[1742305138342,0.1221685,81861.0,81849.0,0.0773]
[1742305138548,0.0762,81853.0,81852.0,0.1221814]
[1742305138750,0.3608,81854.0,81848.0,0.88836]
[1742305138944,0.1221859,81849.0,81848.0,0.88836]
[1742305139139,0.0762,81852.0,81851.0,0.1221829]
[1742305139347,0.3608,81854.0,81853.0,0.12218]
[1742305140042,0.3608,81854.0,81851.0,0.2881708]
[1742305140043,0.3608,81863.0,81859.0,0.122171]
[1742305140240,0.3608,81863.0,81862.0,0.1221665]
[1742305140445,0.0727,81867.0,81866.0,0.1221606]
[1742305140645,0.3608,81879.0,81878.0,0.1221427]
[1742305140856,0.061074,81875.0,81865.0,0.0796]
[1742305141055,0.0794,81874.0,81870.0,0.00018324]
[1742305141241,0.0727,81873.0,81872.0,0.1221516]
[1742305141939,0.0794,81874.0,81872.0,0.1221516]
[1742305141940,0.0794,81874.0,81873.0,0.1221501]
[1742305142341,0.3608,81899.0,81891.0,0.1221233]
[1742305142540,0.0794,81890.0,81889.0,0.1221262]
[1742305142747,0.0794,81890.0,81889.0,0.3468062]
[1742305142945,0.0794,81890.0,81887.0,0.22444]
[1742305143157,0.0773,81889.0,81887.0,0.22444]
[1742305143359,0.1221277,81888.0,81887.0,0.22444]
[1742305143654,0.0806,81888.0,81887.0,0.3465692]
[1742305144246,0.4218483,81909.0,81899.0,0.1221113]
[1742305144544,0.4218483,81909.0,81899.0,0.3453513]
[1742305144545,0.1579,81908.0,81899.0,0.3453513]
[1742305144953,0.1579,81908.0,81907.0,0.1220994]
[1742305145545,0.0610413,81919.0,81899.0,0.7997955]
[1742305145546,0.3608,81924.0,81906.0,0.1547]
[1742305145745,0.4381,81924.0,81910.0,0.3392576]
[1742305145960,0.0610381,81923.0,81914.0,0.1220877]
[1742305146257,0.4381,81924.0,81921.0,0.1220776]
[1742305146457,0.078,81922.0,81919.0,0.22228]
[1742305146659,0.3608,81924.0,81921.0,0.0610386]
[1742305146842,0.3608,81924.0,81923.0,0.1220756]
[1742305147041,0.3608,81933.0,81932.0,0.1220621]
[1742305147547,0.3608,81933.0,81930.0,0.22132]
[1742305147951,0.061031,81932.0,81928.0,0.22104]
[1742305148145,0.3608,81933.0,81923.0,0.88772]
[1742305148463,0.1220741,81924.0,81923.0,0.88772]
[1742305148662,0.1220892,81914.0,81906.0,0.0776]
[1742305148957,0.3608,81911.0,81904.0,0.88748]
[1742305149161,0.0610477,81910.0,81897.0,4e-05]
[1742305149365,0.0610529,81903.0,81897.0,0.1221536]
[1742305149656,0.4829128,81898.0,81897.0,4e-05]
[1742305150958,0.1221233,81891.0,81890.0,0.03395]
[1742305151158,0.4218565,81898.0,81890.0,0.0950123]
[1742305151459,0.3608,81898.0,81896.0,4e-05]
[1742305151853,0.3608,81898.0,81897.0,0.1221143]
[1742305152051,0.3608,81898.0,81896.0,4e-05]
[1742305152251,0.1221143,81897.0,81896.0,4e-05]
[1742305152453,0.3608,81898.0,81897.0,0.1221143]
[1742305152662,0.1221143,81897.0,81896.0,4e-05]
[1742305152849,0.3608,81898.0,81896.0,0.1221558]
[1742305153157,0.3608,81898.0,81896.0,4e-05]
[1742305153358,0.1221143,81897.0,81896.0,4e-05]
[1742305154153,0.1221143,81897.0,81896.0,0.1221543]
[1742305154353,0.1221143,81897.0,81896.0,4e-05]
[1742305154952,0.1221233,81891.0,81890.0,0.03395]
[1742305155155,0.3608,81891.0,81890.0,0.1560748]
[1742305155549,0.3608,81891.0,81890.0,0.03395]
[1742305155750,0.4829233,81891.0,81890.0,0.03395]
[1742305156055,0.3608,81891.0,81890.0,0.1560748]
[1742305156251,0.3608,81898.0,81895.0,0.1221159]
[1742305156446,0.3608,81898.0,81890.0,0.19005]
[1742305156748,0.3608,81898.0,81890.0,0.03395]
[1742305156953,0.3608,81898.0,81893.0,0.0610599]
[1742305157158,0.1221167,81897.0,81896.0,0.1221143]
[1742305157352,0.1221233,81891.0,81890.0,0.03395]
[1742305157658,0.4829233,81891.0,81890.0,0.03395]
[1742305157860,0.3608,81883.0,81845.0,0.21705633]
[1742305158047,0.0610776,81870.0,81854.0,0.0610886]
[1742305158359,0.3608,81859.0,81858.0,0.1221725]
[1742305158750,0.3608,81859.0,81855.0,0.21796]
[1742305159058,0.3608,81866.0,81858.0,0.122172]
[1742305159260,0.3608,81866.0,81850.0,0.00018324]
[1742305159261,0.0610889,81855.0,81850.0,0.00018324]
[1742305159446,0.1221829,81851.0,81850.0,0.00018324]
[1742305159758,0.1221889,81847.0,81833.0,4e-05]
[1742305159957,0.1222009,81839.0,81833.0,4e-05]
[1742305160261,0.4830009,81839.0,81833.0,4e-05]
[1742305160462,0.1222083,81834.0,81833.0,4e-05]
[1742305160757,0.1222083,81834.0,81817.0,4e-05]
[1742305160758,0.1222292,81820.0,81817.0,4e-05]
[1742305160958,0.7827148,81820.0,81819.0,0.1222307]
[1742305161354,0.7216,81820.0,81819.0,0.1222307]
[1742305161547,0.3608,81828.0,81827.0,0.1222188]
[1742305162161,0.4830173,81828.0,81827.0,0.1222188]
[1742305162358,0.3608,81828.0,81827.0,0.1222188]
[1742305162757,0.3608,81828.0,81817.0,4e-05]
[1742305162957,0.4830322,81818.0,81817.0,4e-05]
[1742305163163,0.1222412,81812.0,81806.0,0.48430399]
[1742305163361,0.4830412,81812.0,81806.0,0.36205479]
[1742305163855,0.1222487,81807.0,81806.0,0.36205479]
[1742305164048,0.3608,81807.0,81806.0,0.48430499]
[1742305164264,0.3608,81807.0,81806.0,0.1222502]
[1742305165262,0.0855,81811.0,81810.0,0.1222442]
[1742305165953,0.3608,81825.0,81819.0,0.1222307]
[1742305166159,0.08,81824.0,81819.0,0.1222307]
[1742305166655,0.08,81824.0,81813.0,0.166]
[1742305166860,0.3608,81816.0,81813.0,0.2271192]
[1742305167061,0.1222382,81814.0,81813.0,0.0821]
[1742305167259,0.16,81815.0,81814.0,0.1222382]
[1742305167452,0.3608,81816.0,81815.0,0.1222367]
[1742305167653,0.0611207,81812.0,81809.0,4e-05]
[1742305167959,0.1222438,81811.0,81810.0,0.1222442]
[1742305168164,0.0818,81811.0,81810.0,0.2075442]
[1742305168459,0.3608,81816.0,81810.0,0.2075442]
[1742305168460,0.4830352,81816.0,81815.0,0.1222367]
[1742305168762,0.1222487,81807.0,81806.0,4e-05]
[1742305168969,0.061133,81796.0,81775.0,0.3608]
[1742305169266,0.3608,81788.0,81785.0,0.1222804]
[1742305169453,0.3608,81788.0,81786.0,0.0853]
[1742305169653,0.1222845,81783.0,81782.0,4e-05]
[1742305170064,0.061146,81778.0,81751.0,0.88784]
[1742305170263,0.3608,81754.0,81751.0,0.88784]
[1742305170457,0.3608,81754.0,81753.0,0.1223294]
[1742305170851,0.3608,81754.0,81753.0,0.2099294]
[1742305171051,0.3608,81754.0,81753.0,0.2934294]
[1742305171362,0.3608,81754.0,81753.0,0.1223294]
[1742305172460,0.3608,81754.0,81753.0,0.2058294]
[1742305173854,0.3608,81761.0,81760.0,0.1223189]
[1742305174170,0.00018348,81762.0,81761.0,0.1223174]
[1742305174365,0.00018348,81762.0,81761.0,0.2870174]
[1742305175155,0.00018348,81762.0,81761.0,0.2054174]
[1742305175667,0.00018348,81762.0,81761.0,0.2870174]
[1742305177762,0.3608,81782.0,81781.0,0.1222875]
[1742305177968,0.1222912,81779.0,81775.0,0.207]
[1742305178265,0.1222977,81775.0,81768.0,0.1223062]
[1742305178469,0.3608,81770.0,81769.0,0.2057055]
[1742305178764,0.3608,81775.0,81769.0,0.0834]
[1742305178951,0.0872,81774.0,81770.0,0.1223027]
[1742305179150,0.0611497,81773.0,81770.0,0.1223027]
[1742305179354,0.0872,81774.0,81773.0,0.1222995]
[1742305179557,0.209498,81774.0,81773.0,0.1222995]
[1742305179756,0.1223144,81763.0,81752.0,0.0611653]
[1742305179957,0.56672,81763.0,81744.0,0.061171]
[1742305180169,0.56672,81763.0,81742.0,0.0838]
[1742305180170,0.3608,81745.0,81742.0,0.0838]
[1742305180375,0.3608,81745.0,81744.0,0.1223429]
[1742305181663,0.4831414,81745.0,81744.0,0.1223429]
[1742305181873,0.0611746,81740.0,81737.0,0.0889]
[1742305182070,0.0885,81739.0,81738.0,0.1223519]
[1742305182267,0.0839,81744.0,81743.0,0.1223444]
[1742305182777,0.0839,81744.0,81741.0,0.0611729]
[1742305182778,0.1223459,81742.0,81741.0,0.1835198]
[1742305183073,0.0826,81743.0,81742.0,0.1223459]
[1742305184367,0.3608,81745.0,81744.0,0.1223429]
[1742305184764,0.1223534,81737.0,81720.0,0.37866766]
[1742305184970,0.4831534,81737.0,81736.0,0.12253828]
[1742305185169,0.4831534,81737.0,81736.0,0.00018348]
[1742305186359,0.3608,81737.0,81736.0,0.12253828]
[1742305186555,0.1223532,81739.0,81738.0,0.1223504]
[1742305186774,0.0826,81744.0,81743.0,0.1223444]
[1742305187073,0.12251368,81753.0,81744.0,0.1223429]
[1742305187276,0.0892,81751.0,81744.0,0.2098429]
[1742305187566,0.00018348,81753.0,81744.0,0.2098429]
[1742305187567,0.00018348,81753.0,81752.0,0.1223309]
[1742305188067,0.1223382,81749.0,81746.0,0.0611698]
[1742305188260,0.061169,81748.0,81744.0,0.0861]
[1742305188454,0.1223414,81745.0,81744.0,0.1472707]
[1742305188761,0.1223397,81747.0,81746.0,0.1223384]
[1742305188966,0.5694397,81747.0,81746.0,0.1223384]
[1742305189161,0.4471,81747.0,81746.0,0.1223384]
[1742305189356,0.00018348,81753.0,81752.0,0.1223309]
[1742305189769,0.3608,81778.0,81777.0,0.1222935]
[1742305189971,0.3608,81790.0,81789.0,0.1222756]
[1742305190272,0.4219373,81790.0,81786.0,0.1222787]
[1742305190456,0.1222779,81788.0,81787.0,0.1222771]
[1742305190660,0.1474379,81789.0,81784.0,0.1222823]
[1742305190862,0.1222935,81777.0,81776.0,0.3236943]
[1742305191167,0.1222818,81786.0,81782.0,0.0611425]
[1742305191369,0.1222818,81786.0,81785.0,0.1222808]
[1742305191571,0.1222905,81779.0,81778.0,0.12247548]
[1742305191778,0.3608,81780.0,81779.0,0.1222905]
[1742305192070,0.25076041,81808.0,81791.0,0.1834043]
[1742305192071,0.1834161,81792.0,81791.0,0.1834043]
[1742305192263,0.1834161,81792.0,81791.0,0.0611362]
[1742305192460,0.3608,81793.0,81779.0,0.0611447]
[1742305192676,0.122289,81780.0,81779.0,0.0611447]
[1742305192861,0.4219437,81782.0,81779.0,0.0611447]
[1742305192862,0.5442307,81782.0,81779.0,0.0611447]
[1742305193067,0.3608,81782.0,81781.0,0.1222875]
[1742305193269,0.483086,81782.0,81781.0,0.1222875]
[1742305193460,0.3608,81782.0,81781.0,0.1222875]
[1742305193867,0.3608,81782.0,81781.0,0.2079875]
[1742305194370,0.483086,81782.0,81781.0,0.1222875]
[1742305194772,0.3608,81782.0,81778.0,0.00018348]
[1742305195073,0.183483,81760.0,81759.0,0.1223196]
[1742305195263,0.1223219,81758.0,81757.0,0.061161]
[1742305195465,0.4831203,81760.0,81759.0,0.1223204]
[1742305195663,0.3608,81760.0,81759.0,0.1223204]
[1742305195869,0.4831014,81772.0,81771.0,0.1223025]
[1742305196178,0.3608,81772.0,81771.0,0.1223025]
[1742305196772,0.3608,81772.0,81769.0,0.061152]
[1742305196773,0.00018348,81780.0,81779.0,0.1222905]
[1742305197172,0.00018348,81780.0,81772.0,0.3608]
[1742305197173,0.36098348,81780.0,81770.0,0.28388]
[1742305197375,0.36098348,81780.0,81755.0,0.3608]
[1742305197677,0.36098348,81780.0,81779.0,0.1222905]
[1742305197882,0.00018348,81780.0,81779.0,0.1222905]
[1742305198265,0.36098348,81780.0,81779.0,0.0875]
[1742305198471,0.48327248,81780.0,81779.0,0.2097905]
[1742305198871,0.48327248,81780.0,81763.0,8e-08]
[1742305198872,1.07014348,81780.0,81763.0,8e-08]
[1742305199067,0.8439129,81764.0,81732.0,0.0875]
[1742305199386,0.3608,81733.0,81732.0,0.2098608]
[1742305199680,0.4831593,81733.0,81732.0,0.0875]
[1742305199871,0.4831593,81733.0,81732.0,0.2098608]
[1742305200070,0.3608,81733.0,81732.0,0.2098608]
[1742305200373,0.3608,81733.0,81729.0,0.36366051]
[1742305200374,0.1223638,81730.0,81729.0,0.36366051]
[1742305200684,0.1223713,81725.0,81724.0,0.43463467]
[1742305200980,0.1223893,81713.0,81707.0,0.0875]
[1742305201175,0.4831893,81713.0,81707.0,0.0875]
[1742305201483,0.4831893,81713.0,81700.0,0.10004]
[1742305201679,0.4831893,81713.0,81709.0,0.1223953]
[1742305202081,0.4831893,81713.0,81709.0,0.1223944]
[1742305202284,0.0611995,81707.0,81670.0,0.88868]
[1742305202486,0.8440178,81694.0,81691.0,0.0612109]
[1742305202787,0.7216,81694.0,81693.0,0.81345011]
[1742305203093,0.4832003,81706.0,81703.0,0.1224025]
[1742305203270,0.3608,81706.0,81705.0,0.1224013]
[1742305203467,0.3608,81730.0,81705.0,0.19748]
[1742305203675,0.3608,81730.0,81729.0,0.1223653]
[1742305204469,0.3608,81730.0,81729.0,0.2918653]
[1742305205182,0.1223638,81730.0,81729.0,0.1695]
[1742305205380,0.0611784,81736.0,81735.0,0.0611775]
[1742305205572,0.55748,81736.0,81721.0,0.0001836]
[1742305205771,0.7216,81722.0,81694.0,0.2100166]
[1742305205973,0.1224231,81694.0,81692.0,0.0612099]
[1742305206182,0.4220082,81695.0,81694.0,0.1224178]
[1742305206183,0.3608,81695.0,81694.0,0.1224178]
[1742305206381,0.4832163,81695.0,81694.0,0.1224178]
[1742305206685,0.3608,81695.0,81694.0,0.1224178]
[1742305206880,0.1224163,81697.0,81694.0,0.23237594]
[1742305207084,0.2046148,81696.0,81695.0,0.1836237]
[1742305207583,0.1224163,81695.0,81694.0,0.00166854]
[1742305207789,0.5707163,81695.0,81694.0,0.12408634]
[1742305208291,0.1224208,81692.0,81691.0,4e-05]
[1742305208477,0.1224372,81683.0,81682.0,0.1224308]
[1742305208680,0.4832372,81683.0,81682.0,0.1224308]
[1742305209385,0.443,81683.0,81682.0,0.1224308]
[1742305209575,0.2046342,81683.0,81682.0,0.1224308]
[1742305209776,0.1224372,81681.0,81680.0,4e-05]
[1742305210087,0.1224372,81681.0,81672.0,0.1224477]
[1742305210088,0.18368,81673.0,81672.0,0.1224477]
[1742305210788,0.3608,81674.0,81673.0,0.1224492]
[1742305211084,0.3608,81674.0,81673.0,0.2100492]
[1742305211300,0.1224522,81671.0,81670.0,0.0612262]
[1742305213281,0.3608,81674.0,81670.0,0.0612262]
[1742305213482,0.4220245,81674.0,81671.0,0.1708]
[1742305213679,0.1224507,81672.0,81671.0,0.2932511]
[1742305213983,0.1224522,81671.0,81670.0,0.1224537]
[1742305214293,0.1836842,81670.0,81669.0,0.1224537]
[1742305214489,0.1836842,81670.0,81667.0,0.1224978]
[1742305214490,0.1224567,81668.0,81667.0,0.1224978]
[1742305214796,0.1224567,81668.0,81667.0,0.1224982]
[1742305215084,0.1224567,81668.0,81667.0,0.1224582]
[1742305215293,0.0612316,81664.0,81660.0,0.0612343]
[1742305215593,0.1922,81671.0,81667.0,0.0612288]
[1742305215775,0.3608,81672.0,81671.0,0.1224522]
[1742305215975,0.4832503,81673.0,81669.0,0.1224538]
[1742305216186,0.3608,81673.0,81651.0,0.12684]
[1742305216488,0.3608,81663.0,81662.0,0.1224619]
[1742305217190,0.3608,81663.0,81662.0,0.2948619]
[1742305217495,0.4832507,81673.0,81672.0,0.1224507]
[1742305217986,0.4832507,81673.0,81663.0,0.061232]
[1742305217987,0.5281,81673.0,81669.0,0.0849]
[1742305218190,0.5893251,81673.0,81662.0,0.0875]
[1742305218379,0.5638492,81673.0,81672.0,0.1224507]
[1742305218689,0.5638492,81673.0,81666.0,0.0612295]
[1742305218690,0.1224582,81667.0,81666.0,0.0612295]
[1742305218882,0.1224612,81665.0,81664.0,0.1461306]
[1742305219084,0.1224807,81652.0,81651.0,0.2493222]
[1742305219276,0.3608,81653.0,81652.0,0.1224807]
[1742305219586,0.4832792,81653.0,81652.0,0.2086807]
[1742305220189,0.1224807,81652.0,81651.0,0.2493222]
[1742305220391,0.2031807,81652.0,81651.0,0.2493222]
[1742305220592,0.1224807,81652.0,81651.0,0.2493222]
[1742305220782,0.1224807,81652.0,81651.0,0.4199222]
[1742305221094,0.2031807,81652.0,81651.0,0.4198822]
[1742305221284,0.1224807,81652.0,81651.0,0.4198822]
[1742305221593,0.4832807,81652.0,81651.0,0.1268]
[1742305221802,0.3608,81652.0,81631.0,0.0612542]
[1742305222095,0.3608,81645.0,81636.0,0.0612516]
[1742305222287,0.1605,81651.0,81650.0,0.1224837]
[1742305222486,0.2031822,81651.0,81650.0,0.1224837]
[1742305222889,0.1224837,81650.0,81649.0,0.1693]
[1742305223086,0.1224837,81650.0,81625.0,0.08534]
[1742305223087,0.1225167,81630.0,81627.0,0.061259]
[1742305223287,0.3608,81643.0,81629.0,0.3608]
[1742305223487,0.3608,81643.0,81642.0,0.1224957]
[1742305223685,0.3608,81643.0,81630.0,0.2305563]
[1742305223991,0.0612504,81639.0,81624.0,0.3608]
[1742305224291,0.1225197,81626.0,81625.0,0.2046212]
[1742305224487,0.183777,81628.0,81625.0,0.1433599]
[1742305224684,0.1225153,81629.0,81628.0,0.1225137]
[1742305224990,0.1225182,81627.0,81626.0,0.0612591]
[1742305225185,0.1225242,81623.0,81622.0,4e-05]
[1742305225385,0.6730442,81623.0,81622.0,4e-05]
[1742305225695,0.6730442,81623.0,81622.0,0.1225657]
[1742305225881,0.1225242,81623.0,81622.0,4e-05]
[1742305226088,0.1225332,81617.0,81616.0,0.5658347]
[1742305226388,0.1225332,81617.0,81616.0,0.4433]
[1742305226783,0.1225332,81617.0,81616.0,0.0825]
[1742305226987,0.1225332,81617.0,81616.0,0.2050347]
[1742305227586,0.1225332,81617.0,81613.0,0.0613692]
[1742305227587,0.1225378,81614.0,81613.0,0.0001]
[1742305227786,0.1225378,81614.0,81613.0,0.1226393]
[1742305227988,0.3112578,81614.0,81613.0,0.0001]
[1742305228184,0.3608,81621.0,81615.0,0.0612677]
[1742305228392,0.1225246,81623.0,81622.0,0.1225242]
[1742305228896,0.1225257,81622.0,81621.0,0.2121257]
[1742305229193,0.1225257,81622.0,81621.0,0.0896]
[1742305229390,0.2082257,81622.0,81621.0,0.2121272]
[1742305229991,0.2082257,81622.0,81618.0,0.1225306]
[1742305229992,0.1225317,81619.0,81618.0,0.1225306]
[1742305230187,0.1225378,81614.0,81613.0,0.0001]
[1742305230594,0.3608,81623.0,81615.0,0.1225359]
[1742305230797,0.1884,81622.0,81616.0,0.2121342]
[1742305231096,0.1225332,81617.0,81616.0,0.0896]
[1742305231289,0.1225378,81614.0,81613.0,0.0001]
[1742305231497,0.4833378,81614.0,81613.0,0.0001]
[1742305231888,0.1225393,81613.0,81612.0,2e-05]
[1742305232088,0.1225393,81613.0,81610.0,4.117e-05]
[1742305232089,0.1225423,81611.0,81610.0,4.117e-05]
[1742305232296,0.3105423,81611.0,81610.0,8.117e-05]
[1742305232699,0.1225423,81611.0,81610.0,8.117e-05]
[1742305232903,0.3608,81614.0,81610.0,8.117e-05]
[1742305233201,0.3608,81623.0,81610.0,8.117e-05]
[1742305233401,0.4833423,81611.0,81610.0,8.117e-05]
[1742305233597,0.18788,81615.0,81610.0,8.117e-05]